bitfinex/quotes_ETHUSD_20240925
["timestamp","ask_amount","ask_price","bid_price","bid_amount"]
[1727245653525,4.5694,2621.3,2620.9,3.0]
[1727245653696,8.38444,2621.3,2620.8,3.0]
[1727245653902,4.5694,2621.3,2620.9,3.0]
[1727245654095,8.3844,2621.3,2620.9,3.0]
[1727245654343,4.5694,2621.3,2620.9,3.0]
[1727245654834,4.5694,2621.3,2620.8,3.0]
[1727245655020,8.38438,2621.3,2620.8,3.0]
[1727245655339,4.5694,2621.3,2620.8,3.81551]
[1727245655583,4.5694,2621.3,2620.9,3.0]
[1727245655740,4.5694,2621.3,2620.8,3.0]
[1727245656239,4.6039,2621.1,2620.5,3.0]
[1727245656537,4.6039,2621.1,2620.6,3.81587]
[1727245657238,4.6039,2621.1,2620.6,4.579068]
[1727245657599,3.81537,2621.0,2620.6,0.763198]
[1727245657804,3.81535,2621.0,2620.6,0.763198]
[1727245658034,3.81535,2621.0,2620.4,3.81611]
[1727245658335,4.6039,2621.1,2620.4,3.81611]
[1727245658539,4.6039,2621.1,2620.5,3.81594]
[1727245659740,3.81542,2621.0,2620.4,7.63223]
[1727245660054,3.81542,2621.0,2620.5,3.81606]
[1727245660347,4.6039,2621.1,2620.5,3.81606]
[1727245660853,4.6039,2621.1,2620.6,3.8159]
[1727245663036,0.7886,2621.1,2620.6,3.8159]
[1727245663950,0.7886,2621.1,2620.6,7.63173]
[1727245664159,0.7886,2621.1,2620.6,4.6853253]
[1727245664642,0.7886,2621.1,2620.6,8.5011153]
[1727245664820,0.7886,2621.1,2620.7,3.81566]
[1727245666126,0.7886,2621.1,2620.8,3.81553]
[1727245666328,0.7886,2621.1,2620.9,3.81546]
[1727245668256,0.7886,2621.1,2621.0,3.81533]
[1727245668967,0.7886,2621.3,2621.0,3.81533]
[1727245669554,0.7886,2621.3,2620.9,0.77072975]
[1727245669765,0.7886,2621.3,2621.0,3.8153]
[1727245671180,0.7886,2621.3,2621.1,3.81516]
[1727245673099,0.0381999,2621.4,2621.1,3.81505]
[1727245673376,0.0381999,2621.4,2621.2,3.81496]
[1727245673672,0.0381999,2621.4,2621.2,4.577961]
[1727245674885,0.0381999,2621.4,2621.2,0.763001]
[1727245675445,0.0381999,2621.4,2621.1,3.81505]
[1727245675853,0.0381999,2621.4,2621.3,3.8149]
[1727245676053,0.0381999,2621.4,2621.3,3.89118976]
[1727245679196,0.0381999,2621.4,2621.3,7.99089403]
[1727245679366,0.0381999,2621.4,2621.3,10.99089403]
[1727245679567,0.0381999,2621.4,2621.3,12.47806884]
[1727245685512,0.0381999,2622.2,2621.9,3.8139]
[1727245686885,0.0381999,2622.2,2621.9,7.62783]
[1727245687495,0.0381999,2622.2,2622.0,3.81385]
[1727245687687,0.0381999,2622.2,2622.1,0.762775]
[1727245687892,0.0381999,2622.2,2622.1,4.576505]
[1727245688074,0.0381999,2622.2,2622.1,8.327005]
[1727245688280,0.0381999,2622.2,2622.1,8.877005]
[1727245689470,0.0381999,2622.2,2622.1,8.126505]
[1727245692306,0.0381999,2622.2,2622.1,3.762775]
[1727245692816,0.0381999,2622.2,2622.1,0.762775]
[1727245693149,0.8185999,2622.2,2621.9,3.81401]
[1727245693418,3.54970444,2622.0,2621.1,0.7505]
[1727245693565,0.0381999,2622.2,2621.4,0.63826378]
[1727245693566,4.595,2621.5,2621.4,0.63826378]
[1727245693765,0.85593097,2621.5,2620.8,0.63826378]
[1727245694063,8.14500444,2621.3,2620.5,3.81604]
[1727245694307,3.89061097,2621.2,2620.3,5.20507378]
[1727245694487,3.81508,2621.2,2620.3,4.56681]
[1727245694960,8.14500444,2621.3,2620.4,0.456681]
[1727245695164,3.81504,2621.2,2620.4,0.456681]
[1727245696914,3.81504,2621.2,2620.4,3.456681]
[1727245697316,3.81519,2621.1,2620.4,3.456681]
[1727245697608,3.81504,2621.2,2620.4,3.456681]
[1727245697814,3.81504,2621.2,2620.5,0.8023491]
[1727245698702,3.81519,2621.1,2620.5,0.8023491]
[1727245700911,3.81504,2621.2,2620.5,0.8023491]
[1727245701114,3.8152,2621.1,2620.5,0.8023491]
[1727245701427,3.81504,2621.2,2620.5,0.8023491]
[1727245701428,7.6302,2621.2,2620.5,0.8023491]
[1727245701585,7.6302,2621.2,2620.6,0.89146339]
[1727245701586,3.81504,2621.2,2620.6,0.89146339]
[1727245701786,0.7804,2621.3,2620.6,4.70737339]
[1727245702011,0.7804,2621.3,2620.7,0.8242]
[1727245702595,3.81477,2621.4,2620.7,4.63994]
[1727245702799,3.81477,2621.4,2620.7,1.83917125]
[1727245703148,7.62964,2621.4,2620.7,1.83917125]
[1727245703286,3.81493,2621.3,2620.7,1.83917125]
[1727245703787,3.81491,2621.3,2620.7,1.83917125]
[1727245703998,3.81491,2621.3,2620.7,4.83917125]
[1727245704199,3.81491,2621.3,2620.8,0.87313725]
[1727245704439,4.64567,2621.5,2620.8,4.68872725]
[1727245704602,0.831,2621.5,2620.9,0.07630221]
[1727245704822,4.64572,2621.5,2620.9,0.65516328]
[1727245706488,4.64572,2621.5,2620.9,4.47064328]
[1727245706489,0.831,2621.5,2620.9,4.47064328]
[1727245706689,0.831,2621.5,2620.9,4.47055328]
[1727245706890,0.831,2621.5,2621.0,0.74705533]
[1727245707810,4.6454,2621.7,2621.0,0.74705533]
[1727245708243,3.81447,2621.6,2621.0,0.74705533]
[1727245710157,3.81464,2621.5,2621.0,0.74705533]
[1727245712241,3.81491,2621.3,2621.0,0.74705533]
[1727245712555,3.81491,2621.3,2620.9,0.57886107]
[1727245712905,3.81464,2621.5,2620.9,0.57886107]
[1727245713111,3.81483,2621.4,2620.9,0.57886107]
[1727245719866,7.62933,2621.5,2620.9,4.47060014]
[1727245720040,3.81478,2621.4,2621.0,0.74706001]
[1727245720781,3.81478,2621.4,2620.9,0.57886107]
[1727245721476,3.81464,2621.5,2620.9,4.39424107]
[1727245722536,3.81464,2621.5,2620.9,0.57886107]
[1727245722740,3.8149,2621.3,2620.9,0.57886107]
[1727245724681,3.8149,2621.3,2620.9,3.57886107]
[1727245724883,3.8149,2621.3,2621.0,0.73944611]
[1727245725387,3.81483,2621.4,2621.0,0.73944611]
[1727245725583,3.81483,2621.4,2621.1,0.7902]
[1727245730953,3.81492,2621.3,2621.1,0.7902]
[1727245731108,3.81492,2621.3,2621.1,1.30105072]
[1727245731419,3.81478,2621.4,2621.1,1.30105072]
[1727245731748,3.81482,2621.4,2621.1,1.30105072]
[1727245733146,3.81476,2621.4,2621.1,1.30105072]
[1727245734351,3.81464,2621.5,2621.1,1.30105072]
[1727245734559,3.81485,2621.4,2621.1,1.30105072]
[1727245738126,4.60249465,2621.5,2621.1,1.30105072]
[1727245738322,3.8149,2621.3,2621.1,0.7902]
[1727245738826,3.8149,2621.3,2621.0,0.73944611]
[1727245740923,4.60267465,2621.4,2621.0,0.73944611]
[1727245743488,4.60264465,2621.4,2621.0,0.73944611]
[1727245743783,4.60264465,2621.4,2621.1,0.59239572]
[1727245745560,0.78785465,2621.3,2621.0,1.54176346]
[1727245747097,0.78785465,2621.3,2621.1,0.80284677]
[1727245747292,0.78785465,2621.3,2621.0,1.54176346]
[1727245747293,4.60275465,2621.3,2621.0,1.54176346]
[1727245747496,0.78785465,2621.3,2621.1,0.80284667]
[1727245747660,0.78785465,2621.3,2621.0,1.54176346]
[1727245747986,0.78785465,2621.3,2621.1,0.80284159]
[1727245748191,0.78785465,2621.3,2621.0,1.54176346]
[1727245748397,0.78785465,2621.3,2621.1,0.8029221]
[1727245748587,0.78785465,2621.3,2621.0,1.54176346]
[1727245748801,0.78785465,2621.3,2621.1,0.80292202]
[1727245748957,0.78785465,2621.3,2621.0,1.54176346]
[1727245749160,0.78785465,2621.3,2621.1,1.41766345]
[1727245749358,0.78785465,2621.3,2621.1,0.61474135]
[1727245750081,4.60277465,2621.3,2621.0,1.54176346]
[1727245750256,4.60277465,2621.3,2621.1,0.82096964]
[1727245750452,4.60277465,2621.3,2621.0,0.80231735]
[1727245750651,4.60277465,2621.3,2621.2,0.80313284]
[1727245752897,4.61639,2621.1,2621.0,0.80231735]
[1727245753068,7.92593242,2621.1,2621.0,0.80231735]
[1727245753299,8.24949453,2621.1,2621.0,0.80231735]
[1727245753870,4.43430453,2621.1,2620.7,0.80333391]
[1727245754069,5.01221498,2620.8,2620.7,0.80333391]
[1727245754261,0.79738235,2620.8,2620.3,3.7908]
[1727245754607,3.81578,2620.7,2620.4,1.3431371]
[1727245754786,3.81578,2620.7,2620.4,0.54022277]
[1727245754990,4.61316235,2620.7,2620.4,0.54022277]
[1727245755313,3.81578,2620.7,2620.4,0.54022277]
[1727245755797,0.79738235,2620.8,2620.5,0.43310228]
[1727245755973,0.79738235,2621.0,2620.8,3.81549]
[1727245756176,1.19659498,2621.2,2620.8,3.81549]
[1727245756177,0.79738235,2621.2,2620.8,3.81549]
[1727245756357,0.79738235,2621.4,2620.9,4.28479152]
[1727245756558,4.61214235,2621.4,2620.9,5.0870144]
[1727245756778,4.61214235,2621.4,2620.9,4.28479152]
[1727245756960,4.61214235,2621.4,2621.0,0.81002815]
[1727245757173,4.61214235,2621.4,2621.0,1.61215401]
[1727245757378,0.79738235,2621.4,2621.0,6.21824401]
[1727245757611,0.79738235,2621.4,2621.0,6.21824232]
[1727245757815,0.79738235,2621.4,2621.1,1.31809168]
[1727245758126,0.79738235,2621.4,2621.2,0.64169726]
[1727245758281,0.79738235,2621.4,2621.1,0.67639442]
[1727245758481,4.61208235,2621.5,2621.2,0.64169179]
[1727245758717,4.61208235,2621.5,2621.1,0.67639442]
[1727245759011,4.61208235,2621.5,2621.2,0.64169026]
[1727245759216,4.61208235,2621.5,2621.1,0.67639442]
[1727245759422,4.61208235,2621.5,2621.2,0.64168042]
[1727245759581,4.61208235,2621.5,2621.1,0.67639442]
[1727245759779,0.79738235,2621.4,2621.2,0.6416812]
[1727245760013,0.79738235,2621.4,2621.1,0.67639442]
[1727245761720,0.79738235,2621.4,2621.2,0.6416928]
[1727245762619,0.79738235,2621.5,2621.2,0.6416928]
[1727245762921,0.79738235,2621.5,2621.2,1.70345877]
[1727245763721,0.79738235,2621.5,2621.2,1.06176597]
[1727245763928,0.79738235,2621.6,2621.4,0.8265]
[1727245764091,1.19659498,2621.7,2621.4,0.8265]
[1727245764092,0.79738235,2621.7,2621.4,0.8265]
[1727245764283,0.79738235,2621.8,2621.4,0.8265]
[1727245765085,0.79738235,2621.8,2621.5,4.45623117]
[1727245765287,0.79738235,2621.8,2621.5,4.80453392]
[1727245766130,0.79738235,2621.9,2621.5,4.80453392]
[1727245766595,0.79738235,2621.8,2621.5,4.80453392]
[1727245766797,0.79738235,2621.9,2621.5,4.80453392]
[1727245767003,0.79738235,2621.9,2621.6,0.56310339]
[1727245768099,0.79738235,2621.8,2621.5,0.98996392]
[1727245768341,0.79738235,2621.8,2621.4,0.8265]
[1727245768891,0.79738235,2621.8,2621.3,3.8148]
[1727245769225,0.87291332,2621.8,2621.2,3.8265]
[1727245769394,4.61162235,2621.8,2621.3,3.81489]
[1727245769596,4.61162235,2621.8,2621.3,4.70195222]
[1727245770008,3.81436,2621.7,2621.3,0.88706222]
[1727245770187,3.81436,2621.7,2621.2,7.64153]
[1727245770390,4.64377,2621.6,2621.2,3.0]
[1727245771726,0.8293,2621.6,2621.2,6.81503]
[1727245772036,0.8293,2621.6,2621.3,1.063011]
[1727245774736,0.8293,2621.6,2621.4,0.40071752]
[1727245774937,0.8293,2621.6,2621.5,0.40071752]
[1727245775731,4.71929097,2621.6,2621.5,0.40071752]
[1727245775941,3.81472,2621.5,2621.0,3.8265]
[1727245776239,3.81483,2621.4,2621.0,3.8265]
[1727245776600,7.62994,2621.3,2620.8,0.7868]
[1727245776807,3.81493,2621.3,2620.8,0.7868]
[1727245777005,3.81519,2621.1,2620.6,3.81582]
[1727245777208,3.81519,2621.1,2620.6,6.30719023]
[1727245777739,3.81542,2621.0,2620.6,1.70457023]
[1727245777940,3.81542,2621.0,2620.5,3.81604]
[1727245778128,3.81549,2620.9,2620.4,0.7868]
[1727245778342,3.81549,2620.9,2620.4,4.60299]
[1727245779544,3.81549,2620.9,2620.5,3.0]
[1727245779760,3.81564,2620.8,2620.5,3.0]
[1727245779966,3.81549,2620.9,2620.4,0.7868]
[1727245780256,3.81579,2620.7,2620.4,0.7868]
[1727245780661,3.81579,2620.7,2620.3,3.0]
[1727245780821,3.81579,2620.7,2620.3,3.88317858]
[1727245782724,4.62305,2620.8,2620.3,3.88317858]
[1727245783557,0.8074,2620.8,2620.3,7.69947858]
[1727245783859,3.81549,2620.9,2620.3,7.69947858]
[1727245784066,3.81549,2620.9,2620.4,1.23026786]
[1727245784365,7.63109,2620.9,2620.4,1.23026786]
[1727245784657,3.81549,2620.9,2620.4,1.23026786]
[1727245785228,7.63109,2620.9,2620.4,1.23026786]
[1727245785759,3.81563,2620.8,2620.4,1.23026786]
[1727245785967,7.63108,2620.9,2620.4,1.23026786]
[1727245786971,3.81549,2620.9,2620.4,1.23026786]
[1727245787143,7.63108,2620.9,2620.4,1.23026786]
[1727245787643,3.81549,2620.9,2620.4,5.04640786]
[1727245788033,0.7965552,2621.2,2620.6,3.81582]
[1727245788375,5.01159498,2621.3,2620.6,3.81582]
[1727245788376,3.815,2621.3,2620.9,0.7868]
[1727245789375,4.62218,2621.4,2620.9,4.60218]
[1727245789566,4.62218,2621.4,2620.9,5.44395]
[1727245790258,3.8147,2621.5,2620.9,5.44395]
[1727245790454,9.2015852,2621.7,2621.1,3.81518]
[1727245790651,8.40503,2621.7,2621.1,4.741093]
[1727245790829,4.59058,2621.7,2621.1,4.741093]
[1727245791032,0.7762,2621.7,2621.3,3.81486]
[1727245791355,11.27417,2621.8,2621.3,3.81486]
[1727245792067,7.46,2621.8,2621.3,4.7473753]
[1727245792268,4.59031,2621.9,2621.4,3.81474]
[1727245796351,8.40445,2621.9,2621.4,3.81474]
[1727245797353,3.81418,2621.8,2621.4,3.81474]
[1727245797557,3.81418,2621.8,2621.2,3.84548949]
[1727245797757,3.81418,2621.8,2621.3,0.76605795]
[1727245797961,3.81418,2621.8,2621.3,4.58092795]
[1727245798844,4.59031,2621.9,2621.3,8.39572795]
[1727245799048,3.81419,2621.8,2621.3,4.58085795]
[1727245800162,4.59031,2621.9,2621.3,4.6571476]
[1727245800360,4.59031,2621.9,2621.4,4.6497158]
[1727245800567,4.59031,2621.9,2621.4,0.8350058]
[1727245800768,3.81411,2621.9,2621.5,0.7692]
[1727245801488,7.62823,2621.9,2621.5,0.7692]
[1727245801851,7.62826,2621.9,2621.5,0.7692]
[1727245802052,4.59052,2621.7,2621.2,3.7692]
[1727245802483,8.40496,2621.7,2621.2,3.7692]
[1727245803085,3.81447,2621.6,2621.2,3.7692]
[1727245804385,4.59052,2621.7,2621.2,3.7692]
[1727245804697,0.7762,2621.7,2621.2,3.7692]
[1727245804849,4.6106652,2621.9,2621.2,8.41886634]
[1727245805047,3.81411,2621.9,2621.2,7.58414]
[1727245805244,3.81411,2621.9,2621.3,0.758414]
[1727245805692,3.81411,2621.9,2621.4,3.81465]
[1727245806049,3.81419,2621.8,2621.3,0.758414]
[1727245806355,3.81419,2621.8,2621.2,11.39909]
[1727245806777,3.81419,2621.8,2621.3,3.81489]
[1727245807749,3.81433,2621.7,2621.2,7.58421]
[1727245808163,0.7805,2621.6,2621.2,7.58421]
[1727245808763,4.6106652,2621.9,2621.3,3.81482]
[1727245809089,3.81411,2621.9,2621.3,3.81482]
[1727245809392,3.81411,2621.9,2621.4,3.81474]
[1727245809393,7.62824,2621.9,2621.4,3.81474]
[1727245809590,3.81411,2621.9,2621.4,3.81474]
[1727245810489,7.62822,2621.9,2621.4,3.81474]
[1727245810694,3.81411,2621.9,2621.4,3.81474]
[1727245811708,1.63365987,2622.2,2621.7,3.81424]
[1727245811709,4.6484351,2622.2,2621.7,3.81424]
[1727245811995,0.0381999,2622.2,2621.9,0.8122]
[1727245812553,0.0381999,2622.2,2621.8,3.0]
[1727245812903,3.58598039,2622.2,2621.7,0.8122]
[1727245813060,3.81384,2622.1,2621.7,0.8122]
[1727245813594,3.81384,2622.1,2621.1,0.8122]
[1727245813595,3.54778049,2621.8,2621.1,0.8122]
[1727245813898,3.54778049,2621.8,2620.8,0.79493769]
[1727245813899,3.8149,2621.3,2620.8,0.8122]
[1727245814654,4.32828049,2621.4,2620.8,4.62773]
[1727245814967,3.81491,2621.3,2620.8,0.8122]
[1727245815298,3.81463,2621.5,2620.9,3.81537]
[1727245815459,5.12483569,2621.6,2620.9,3.81537]
[1727245815656,8.14282049,2621.6,2621.0,3.81529]
[1727245815984,4.59477,2621.8,2621.2,4.62721]
[1727245816290,0.7965552,2621.9,2621.2,0.88849657]
[1727245816497,3.81391,2622.0,2621.4,3.81465]
[1727245816660,3.81391,2622.0,2621.5,0.762943]
[1727245816996,3.81391,2622.0,2621.4,3.81465]
[1727245817219,5.3908552,2622.1,2621.4,3.81465]
[1727245817409,3.81388,2622.0,2621.4,3.81465]
[1727245818229,3.81412,2621.9,2621.3,3.81478]
[1727245818371,3.81412,2621.9,2621.3,7.62956]
[1727245818581,8.93863569,2622.1,2621.3,4.658956]
[1727245818807,12.75248569,2622.1,2621.4,3.81472]
[1727245819013,8.14208049,2622.1,2621.4,3.81472]
[1727245819216,3.81388,2622.0,2621.4,3.81472]
[1727245819423,8.14202049,2622.1,2621.5,3.81454]
[1727245819717,11.95589049,2622.1,2621.5,3.81454]
[1727245819879,8.14202049,2622.1,2621.5,3.81454]
[1727245820212,3.81393,2622.0,2621.4,7.7433376]
[1727245820786,3.81393,2622.0,2621.5,1.15581176]
[1727245821194,8.40811,2622.1,2621.6,0.8016]
[1727245821381,3.81388,2622.0,2621.6,0.8016]
[1727245822214,4.59424,2622.1,2621.6,0.8016]
[1727245822517,4.59424,2622.1,2621.6,4.61601]
[1727245822712,4.59424,2622.1,2621.6,5.76671466]
[1727245823518,8.40806,2622.1,2621.6,5.76671466]
[1727245823818,4.59424,2622.1,2621.6,5.76671466]
[1727245824722,4.59424,2622.1,2621.6,1.95230466]
[1727245824906,8.40805,2622.1,2621.6,0.8016]
[1727245825096,4.59424,2622.1,2621.6,0.8016]
[1727245825524,8.40808,2622.1,2621.6,0.8016]
[1727245825835,8.40808,2622.1,2621.6,4.61602]
[1727245825836,3.81374,2622.1,2621.6,4.61602]
[1727245826123,7.62759,2622.1,2621.7,0.761602]
[1727245826283,7.62759,2622.1,2621.6,0.8016]
[1727245826486,7.62759,2622.1,2621.5,3.0]
[1727245826487,3.81403,2621.9,2621.5,3.0]
[1727245826685,4.56743,2621.9,2621.4,0.8016]
[1727245826884,3.81422,2621.8,2621.4,0.8016]
[1727245829234,3.81422,2621.8,2621.0,3.81523]
[1727245829235,0.07553097,2621.7,2621.0,3.81523]
[1727245829429,3.81454,2621.6,2621.0,8.43208]
[1727245829727,7.62911,2621.6,2621.0,4.61683]
[1727245829932,3.81468,2621.5,2621.3,0.64066057]
[1727245830142,3.81468,2621.5,2621.0,4.61683]
[1727245830143,3.81468,2621.5,2621.0,5.25749057]
[1727245830291,3.81461,2621.5,2621.0,5.52413306]
[1727245830492,3.81461,2621.5,2621.1,3.0]
[1727245832130,7.62913,2621.6,2621.1,3.0]
[1727245832333,8.4256852,2621.6,2621.1,3.0]
[1727245832830,3.81454,2621.6,2621.1,3.0]
[1727245833018,3.81476,2621.4,2621.0,0.8016]
[1727245834436,4.6110952,2621.6,2621.1,3.0]
[1727245834730,0.7965552,2621.6,2621.2,3.81496]
[1727245834945,0.7965552,2621.7,2621.2,3.81496]
[1727245835101,4.6109452,2621.7,2621.2,3.81496]
[1727245835544,0.7965552,2621.6,2621.2,3.81496]
[1727245835894,4.6110852,2621.6,2621.1,3.0]
[1727245836094,4.6110852,2621.6,2621.0,1.944853]
[1727245836095,1.5682552,2621.5,2621.0,0.8016]
[1727245836325,1.5682552,2621.5,2621.3,0.40087115]
[1727245836326,3.81483,2621.4,2621.3,0.40087115]
[1727245837000,4.6113852,2621.4,2621.3,0.40087115]
[1727245837198,4.6113852,2621.4,2621.0,0.8016]
[1727245837441,4.6113852,2621.4,2621.1,0.40089789]
[1727245837613,4.6113852,2621.4,2621.2,0.40089789]
[1727245837929,3.81483,2621.4,2621.3,0.40089785]
[1727245839141,4.6113852,2621.4,2620.9,3.0]
[1727245839430,3.81507,2621.2,2621.0,0.40086682]
[1727245839636,3.81507,2621.2,2621.1,0.40086682]
[1727245840226,8.4262652,2621.4,2621.1,0.40086682]
[1727245840555,3.8149,2621.3,2621.2,0.40086682]
[1727245841252,3.8149,2621.3,2620.9,3.0]
[1727245841561,3.8149,2621.3,2621.0,0.40080115]
[1727245841739,3.8149,2621.3,2620.9,3.0]
[1727245841921,3.81504,2621.2,2621.0,0.40080115]
[1727245842316,3.81504,2621.2,2621.1,0.40080115]
[1727245842612,3.81504,2621.2,2621.1,0.40076714]
[1727245843219,3.81504,2621.2,2620.8,4.64771]
[1727245843487,3.81504,2621.2,2620.9,0.40072734]
[1727245843612,4.6113952,2621.4,2621.0,0.40072734]
[1727245843816,8.4262552,2621.4,2621.1,0.40072734]
[1727245844145,8.4262552,2621.4,2620.8,5.794]
[1727245844146,3.81491,2621.3,2620.8,5.794]
[1727245844455,3.81491,2621.3,2620.9,0.40069349]
[1727245844665,3.81491,2621.3,2621.0,0.40069349]
[1727245845096,3.81491,2621.3,2620.8,5.794]
[1727245845220,4.58675,2621.2,2620.7,6.81577]
[1727245845842,4.58675,2621.2,2620.7,6.81568]
[1727245846234,4.58675,2621.2,2620.7,10.63136]
[1727245846773,4.58675,2621.2,2620.9,0.40067206]
[1727245847215,0.7717,2621.2,2620.9,0.40067206]
[1727245847422,0.7965552,2621.3,2620.9,0.40067206]
[1727245848348,0.7965552,2621.3,2620.8,3.81562]
[1727245848349,9.1979552,2621.4,2620.8,3.81562]
[1727245848552,9.1979552,2621.4,2620.8,4.961973]
[1727245849445,3.81503,2621.3,2620.8,4.961973]
[1727245850267,3.81511,2621.2,2620.7,6.81575]
[1727245850940,3.81511,2621.2,2620.9,0.40056869]
[1727245851150,3.81511,2621.2,2620.7,6.81575]
[1727245852058,3.81555,2620.9,2620.6,3.0]
[1727245852561,3.81555,2620.9,2620.4,0.7665]
[1727245852562,3.81565,2620.8,2620.4,3.7665]
[1727245852743,3.81555,2620.9,2620.4,3.7665]
[1727245853272,3.81555,2620.9,2620.5,3.0]
[1727245854956,3.81564,2620.8,2620.4,0.7665]
[1727245855144,7.63116,2620.9,2620.4,0.7665]
[1727245855344,3.81555,2620.9,2620.4,0.7665]
[1727245855546,3.81555,2620.9,2620.4,4.58269]
[1727245855865,3.81555,2620.9,2620.5,3.0]
[1727245856538,3.81555,2620.9,2620.5,6.81606]
[1727245856741,4.62855,2621.0,2620.5,7.574316]
[1727245857205,3.81527,2621.1,2620.5,7.574316]
[1727245857648,3.81534,2621.0,2620.5,7.574316]
[1727245860852,3.81549,2620.9,2620.5,3.757256]
[1727245861051,3.81549,2620.9,2620.5,2.999]
[1727245861866,3.81549,2620.9,2620.4,8.39884]
[1727245862186,3.81549,2620.9,2620.4,4.58263]
[1727245862365,3.81549,2620.9,2620.4,8.39876]
[1727245862566,3.81549,2620.9,2620.4,8.39875]
[1727245862783,3.81549,2620.9,2620.4,4.58262]
[1727245863152,3.81574,2620.8,2620.4,0.7665]
[1727245863347,0.8132,2620.8,2620.4,0.7665]
[1727245863797,4.62887,2620.8,2620.4,0.7665]
[1727245864590,4.62887,2620.8,2619.8,4.61194769]
[1727245864591,3.81607,2620.5,2620.0,4.60263]
[1727245864778,0.8165,2620.4,2620.0,4.60263]
[1727245865588,0.8165,2620.6,2620.1,3.81663]
[1727245866099,4.63243,2620.6,2620.1,3.81663]
[1727245866395,0.8165,2620.6,2620.1,3.81663]
[1727245866697,4.70798097,2620.6,2620.1,3.81663]
[1727245868250,0.89203097,2620.6,2620.1,3.81664]
[1727245868650,0.89203097,2620.6,2620.0,0.7859]
[1727245868651,3.81606,2620.5,2620.0,0.7859]
[1727245868886,3.81606,2620.5,2620.0,4.60256]
[1727245870300,4.2868691,2620.5,2619.8,0.7859]
[1727245870613,3.81637,2620.3,2619.8,0.7859]
[1727245870896,3.81676,2620.1,2619.6,7.39]
[1727245871131,0.07553097,2620.0,2619.6,7.39]
[1727245871395,0.8165,2619.7,2619.6,7.39]
[1727245871595,0.8165,2619.7,2619.3,4.60365]
[1727245872003,0.8165,2619.7,2619.4,3.81764]
[1727245872162,0.8165,2619.9,2619.5,3.8175]
[1727245874998,3.81688,2620.0,2619.5,4.959612]
[1727245875169,3.81688,2620.0,2619.5,3.8175]
[1727245877300,4.63316,2620.1,2619.5,3.8175]
[1727245877664,3.81684,2620.0,2619.5,3.8175]
[1727245879306,3.81684,2620.0,2619.0,7.4281999]
[1727245879307,0.8165,2619.3,2619.0,0.0381999]
[1727245879462,3.8181,2619.1,2619.0,0.0381999]
[1727245879662,4.65553097,2619.1,2619.0,0.0381999]
[1727245882902,4.58,2619.1,2619.0,0.0381999]
[1727245884409,4.65553097,2619.1,2619.0,0.0381999]
[1727245888472,3.89363097,2619.1,2619.0,0.0381999]
[1727245888687,5.09575712,2619.1,2619.0,0.0381999]
[1727245892160,8.64353761,2619.1,2619.0,0.0381999]
[1727245892362,8.56800664,2619.1,2619.0,0.0381999]
[1727245893366,5.02022615,2619.1,2619.0,0.0381999]
[1727245894004,1.20212615,2619.1,2619.0,0.0381999]
[1727245894306,3.81795,2619.2,2619.0,0.0381999]
[1727245894710,0.07553097,2619.1,2619.0,0.0381999]
[1727245894917,3.89363097,2619.1,2619.0,0.0381999]
[1727245895716,0.07553097,2619.1,2619.0,0.0381999]
[1727245896291,3.89363097,2619.1,2619.0,0.0381999]
[1727245896598,4.69654906,2619.1,2619.0,0.0381999]
[1727245897797,8.24432955,2619.1,2619.0,0.0381999]
[1727245898107,8.16879858,2619.1,2619.0,0.0381999]
[1727245899518,8.96219858,2619.1,2619.0,0.0381999]
[1727245900869,11.96219858,2619.1,2619.0,0.0381999]
[1727245903642,8.41441809,2619.1,2619.0,0.0381999]
[1727245903812,11.96219858,2619.1,2619.0,0.0381999]
[1727245915032,11.96097352,2619.1,2619.0,0.0381999]
[1727245917359,8.41319303,2619.1,2619.0,0.0381999]
[1727245917562,11.96097352,2619.1,2619.0,0.0381999]
[1727245919660,12.75145856,2619.1,2619.0,0.0381999]
[1727245920866,13.14670108,2619.1,2619.0,0.0381999]
[1727245921369,13.5419436,2619.1,2619.0,0.0381999]
[1727245922374,11.96097352,2619.1,2619.0,0.0381999]
[1727245922744,13.94514877,2619.1,2619.0,0.0381999]
[1727245923434,11.96097352,2619.1,2619.0,0.0381999]
[1727245924452,14.34198382,2619.1,2619.0,0.0381999]
[1727245925387,11.96097352,2619.1,2619.0,0.0381999]
[1727245926348,14.34990747,2619.1,2619.0,0.0381999]
[1727245928339,12.44364889,2619.1,2619.0,0.0381999]
[1727245928692,10.05471494,2619.1,2619.0,0.0381999]
[1727245931190,12.44354424,2619.1,2619.0,0.0381999]
[1727245931375,12.44365215,2619.1,2619.0,0.0381999]
[1727245931920,9.44365215,2619.1,2619.0,0.0381999]
[1727245933362,7.05471494,2619.1,2619.0,0.0381999]
[1727245933739,7.13024591,2619.1,2619.0,0.0381999]
[1727245935513,9.51956633,2619.1,2619.0,0.0381999]
[1727245935683,9.44403536,2619.1,2619.0,0.0381999]
[1727245937108,12.44403536,2619.1,2619.0,0.0381999]
[1727245937507,10.05471494,2619.1,2619.0,0.0381999]
[1727245938007,12.44456487,2619.1,2619.0,0.0381999]
[1727245938381,10.05471494,2619.1,2619.0,0.0381999]
[1727245939319,10.05471494,2619.1,2618.2,0.8078999]
[1727245939320,10.05471494,2619.1,2618.2,0.0381999]
[1727245939321,3.81927,2618.3,2618.2,0.0381999]
[1727245939487,7.45186148,2618.3,2618.2,0.0381999]
[1727245939826,7.52732662,2618.3,2618.2,0.0381999]
[1727245940477,5.53632288,2618.3,2618.2,0.0381999]
[1727245940675,8.74436228,2618.3,2618.2,0.0381999]
[1727245940928,9.67782757,2618.3,2618.2,0.0381999]
[1727245941284,8.03630566,2618.3,2618.2,0.0381999]
[1727245941504,9.67782757,2618.3,2618.2,0.0381999]
[1727245943430,10.50172757,2618.3,2618.2,0.0381999]
[1727245944226,12.89093206,2618.3,2618.2,0.0381999]
[1727245944419,12.88586551,2618.3,2618.2,0.0381999]
[1727245944641,10.50172757,2618.3,2618.2,0.0381999]
[1727245945003,13.28452869,2618.3,2618.2,0.0381999]
[1727245945431,10.50172757,2618.3,2618.2,0.0381999]
[1727245945628,11.05172757,2618.3,2618.2,0.0381999]